bitfinex-derivatives/quotes_SOLF0:USTF0_20250625
["timestamp","ask_amount","ask_price","bid_price","bid_amount"]
[1750862007495,7.22767477,145.35,145.3,9.2351]
[1750862007694,6.8768,145.34,145.3,8.75967155]
[1750862008198,14.10417477,145.35,145.32,6.8775]
[1750862008401,6.8765,145.35,145.32,6.8775]
[1750862008593,52.70767477,145.37,145.33,6.8769]
[1750862008900,52.70767477,145.37,145.31,6.40307155]
[1750862009093,52.70767477,145.37,145.32,6.8771]
[1750862009299,6.8764,145.35,145.32,6.8771]
[1750862009805,52.70767477,145.37,145.32,6.8771]
[1750862009994,52.70767477,145.37,145.33,6.8768]
[1750862011201,6.8763,145.35,145.33,6.8768]
[1750862011499,45.48,145.37,145.33,6.8768]
[1750862011702,6.8759,145.36,145.33,6.8768]
[1750862012706,7.22767477,145.35,145.32,6.40307155]
[1750862012895,45.48,145.37,145.3,6.40307155]
[1750862012896,7.22767477,145.33,145.3,6.40307155]
[1750862013291,6.8778,145.32,145.3,6.40307155]
[1750862013491,7.22767477,145.33,145.3,6.40307155]
[1750862013805,14.10567477,145.31,145.3,6.40307155]
[1750862013991,7.22767477,145.31,145.28,6.40307155]
[1750862014394,14.10667477,145.29,145.28,6.40307155]
[1750862014599,7.22767477,145.29,145.27,6.40307155]
[1750862014907,6.8794,145.28,145.27,6.40307155]
[1750862015400,52.68767477,145.29,145.24,6.40307155]
[1750862015601,6.8809,145.25,145.24,6.40307155]
[1750862016100,6.8813,145.24,145.23,6.40307155]
[1750862016402,14.10897477,145.24,145.23,6.40307155]
[1750862016600,14.10897477,145.24,145.21,8.51303127]
[1750862016601,7.22767477,145.24,145.21,6.40307155]
[1750862016904,45.48,145.25,145.18,12.7695469]
[1750862016905,7.22767477,145.22,145.18,6.40307155]
[1750862017099,6.8837,145.19,145.18,6.40307155]
[1750862017494,6.8837,145.19,145.17,6.40307155]
[1750862018202,45.48,145.21,145.17,6.40307155]
[1750862018407,7.22767477,145.24,145.18,6.40307155]
[1750862018600,52.70767477,145.26,145.2,6.40307155]
[1750862020003,52.70767477,145.26,145.24,6.8813]
[1750862020406,45.48,145.26,145.21,6.40307155]
[1750862020601,45.48,145.26,145.25,6.8809]
[1750862021100,45.48,145.3,145.22,8.66727155]
[1750862021401,45.48,145.3,145.23,6.40307155]
[1750862021402,52.70767477,145.3,145.23,6.40307155]
[1750862021799,6.879,145.29,145.26,6.8801]
[1750862022418,6.8794,145.28,145.25,6.8806]
[1750862022800,7.22767477,145.28,145.24,6.40307155]
[1750862023603,6.8801,145.27,145.24,13.28407155]
[1750862024003,7.22767477,145.26,145.24,6.40307155]
[1750862024198,7.22767477,145.26,145.22,6.40307155]
[1750862024400,52.16767477,145.26,145.21,8.75107155]
[1750862024602,7.22767477,145.24,145.21,6.40307155]
[1750862025111,6.8821,145.23,145.2,6.8829]
[1750862026302,44.96,145.3,145.2,13.63074632]
[1750862026498,44.96,145.3,145.23,6.40307155]
[1750862027008,7.22767477,145.29,145.23,2.2962]
[1750862027306,7.22767477,145.29,145.26,6.8803]
[1750862027307,14.10687477,145.29,145.26,6.8803]
[1750862028110,7.22767477,145.29,145.24,6.8811]
[1750862028409,7.22767477,145.29,145.23,2.2962]
[1750862028607,6.8797,145.28,145.25,6.8808]
[1750862028911,7.22767477,145.29,145.23,2.2962]
[1750862029103,7.22767477,145.29,145.27,6.8795]
[1750862029498,51.8386,145.3,145.24,6.40307155]
[1750862029704,44.96,145.3,145.25,2.3217]
[1750862030013,44.96,145.3,145.25,8.72477155]
[1750862030313,44.96,145.3,145.28,6.8791]
[1750862030504,51.8385,145.3,145.28,6.8791]
[1750862030699,44.96,145.3,145.28,6.8791]
[1750862030911,44.96,145.3,145.26,6.40307155]
[1750862032706,52.16767477,145.33,145.27,6.40307155]
[1750862032912,59.04517477,145.33,145.3,6.8782]
[1750862033913,6.8776,145.32,145.29,6.8786]
[1750862034218,6.8776,145.32,145.27,6.40307155]
[1750862034416,59.04487477,145.33,145.31,6.8779]
[1750862034613,52.16767477,145.33,145.28,6.40307155]
[1750862035217,44.94,145.33,145.28,6.40307155]
[1750862035717,51.8171,145.33,145.3,6.8782]
[1750862037310,44.94,145.33,145.31,6.8779]
[1750862037910,51.8171,145.33,145.3,6.8783]
[1750862038517,6.8779,145.32,145.29,6.8789]
[1750862038713,6.8779,145.32,145.28,6.40307155]
[1750862038714,44.94,145.33,145.28,6.40307155]
[1750862039220,6.8779,145.32,145.28,13.28217155]
[1750862039519,44.94,145.33,145.28,13.28217155]
[1750862039818,6.8778,145.32,145.29,6.8789]
[1750862040415,6.8781,145.31,145.28,13.28227155]
[1750862040723,6.8781,145.31,145.26,53.45303127]
[1750862040724,7.22767477,145.3,145.26,6.40307155]
[1750862040921,6.8795,145.28,145.26,13.28327155]
[1750862041219,6.8795,145.28,145.26,6.40307155]
[1750862041420,6.8799,145.27,145.26,6.40307155]
[1750862041730,7.22767477,145.28,145.24,6.40307155]
[1750862041915,6.8805,145.26,145.24,13.28417155]
[1750862042319,6.8805,145.26,145.24,6.8811]
[1750862042522,6.88,145.27,145.24,6.8811]
[1750862042719,6.88,145.27,145.25,6.8808]
[1750862042921,44.94,145.29,145.24,6.40307155]
[1750862043220,44.94,145.29,145.27,6.8796]
[1750862043526,6.879,145.29,145.25,6.40307155]
[1750862043821,52.16767477,145.32,145.28,6.8793]
[1750862044016,52.16767477,145.32,145.26,6.40307155]
[1750862044217,7.22767477,145.28,145.23,15.58087155]
[1750862044425,52.16767477,145.28,145.23,2.2962]
[1750862044628,52.16767477,145.28,145.23,8.69927155]
[1750862044933,52.16767477,145.28,145.24,6.881]
[1750862045329,52.16767477,145.28,145.23,8.69927155]
[1750862045525,52.16767477,145.28,145.23,15.58077155]
[1750862045728,52.16767477,145.28,145.23,8.69927155]
[1750862046028,6.8802,145.27,145.24,6.881]
[1750862046226,52.16767477,145.28,145.24,6.881]
[1750862046822,6.88,145.27,145.25,6.8807]
[1750862047024,52.16767477,145.31,145.24,6.40307155]
[1750862047225,44.94,145.31,145.25,8.77307155]
[1750862047422,6.8799,145.28,145.25,9.2506]
[1750862048426,7.22767477,145.29,145.25,2.37]
[1750862048625,7.22767477,145.31,145.25,8.77307155]
[1750862048826,44.94,145.32,145.28,6.8792]
[1750862049032,52.16767477,145.32,145.28,6.8792]
[1750862049233,44.94,145.32,145.27,6.40307155]
[1750862049432,44.94,145.32,145.28,6.8792]
[1750862049637,6.8783,145.31,145.28,6.8792]
[1750862050335,6.8783,145.31,145.29,6.8789]
[1750862050527,51.8178,145.32,145.29,6.8789]
[1750862050835,688.68,145.35,145.27,6.40307155]
[1750862051134,7.22767477,145.34,145.29,6.40307155]
[1750862051627,7.22767477,145.33,145.29,6.40307155]
[1750862052029,6.8783,145.31,145.28,13.28227155]
[1750862052447,6.8783,145.31,145.29,6.8789]
[1750862052739,6.8783,145.31,145.28,6.40307155]
[1750862053141,6.8783,145.31,145.29,6.8788]
[1750862053532,6.8778,145.32,145.29,6.8788]
[1750862053733,7.22767477,145.34,145.29,6.40307155]
[1750862054742,688.68,145.35,145.29,6.40307155]
[1750862055033,44.94,145.35,145.29,6.40307155]
[1750862055634,44.94,145.35,145.32,6.40307155]
[1750862055943,643.94,145.41,145.38,6.8746]
[1750862056139,51.72767477,145.42,145.38,6.8746]
[1750862056443,51.3728,145.42,145.39,6.874]
[1750862056644,44.5,145.42,145.39,6.874]
[1750862056828,44.5,145.42,145.36,6.40307155]
[1750862057228,7.22767477,145.41,145.36,6.40307155]
[1750862057435,7.22767477,145.41,145.35,6.40307155]
[1750862057733,6.874,145.4,145.37,6.8749]
[1750862057940,7.22767477,145.41,145.37,6.8749]
[1750862058143,7.22767477,145.41,145.35,6.40307155]
[1750862058346,6.8745,145.39,145.36,6.8753]
[1750862058750,51.72767477,145.42,145.35,6.40307155]
[1750862059041,6.874,145.4,145.37,6.8749]
[1750862059741,6.8742,145.39,145.37,6.8749]
[1750862060147,7.22767477,145.41,145.37,6.8749]
[1750862060351,7.22767477,145.41,145.38,6.8745]
[1750862060539,44.5,145.42,145.35,6.40307155]
[1750862061038,6.8735,145.41,145.38,6.8744]
[1750862061238,7.22767477,145.41,145.35,6.40307155]
[1750862061439,7.22767477,145.41,145.34,6.40307155]
[1750862061652,6.8746,145.39,145.34,6.40307155]
[1750862062040,7.22767477,145.41,145.36,6.8756]
[1750862062243,7.22767477,145.41,145.34,6.40307155]
[1750862062642,6.874,145.4,145.37,6.8749]
[1750862062837,6.874,145.4,145.34,6.40307155]
[1750862063145,6.874,145.4,145.37,6.8749]
[1750862063544,6.8743,145.39,145.34,6.40307155]
[1750862063950,44.5,145.42,145.34,6.40307155]
[1750862064251,44.5,145.42,145.35,6.40307155]
[1750862064444,44.5,145.42,145.36,2.4565]
[1750862064646,657.6402,145.48,145.4,6.8737]
[1750862064859,44.48,145.46,145.37,13.63074632]
[1750862065044,51.3511,145.46,145.38,6.40307155]
[1750862065238,51.3511,145.46,145.42,6.8725]
[1750862065541,51.3511,145.46,145.39,4.7499]
[1750862065740,44.48,145.46,145.39,4.7499]
[1750862065949,44.48,145.46,145.39,11.15297155]
[1750862066147,643.9,145.48,145.39,11.15297155]
[1750862066348,651.12767477,145.48,145.4,6.40307155]
[1750862066749,7.22767477,145.46,145.4,6.40307155]
[1750862066952,7.22767477,145.46,145.39,11.15297155]
[1750862067148,44.48,145.49,145.41,7.22767477]
[1750862067466,6.8691,145.5,145.43,7.22767477]
[1750862067656,44.48,145.52,145.44,2.4402]
[1750862067952,7.22767477,145.5,145.44,2.4402]
[1750862068550,6.8699,145.49,145.45,6.8713]
[1750862068940,7.22767477,145.48,145.4,44.48]
[1750862069148,51.70767477,145.48,145.4,46.9202]
[1750862069347,7.22767477,145.47,145.4,53.32327155]
[1750862069655,7.22767477,145.47,145.4,46.9202]
[1750862070157,7.22767477,145.47,145.42,6.8728]
[1750862070347,7.22767477,145.45,145.4,2.4402]
[1750862070546,7.22767477,145.43,145.39,2.3875]
[1750862071657,6.8731,145.42,145.38,6.8745]
[1750862072656,14.10017477,145.43,145.39,6.874]
[1750862072852,792.82,145.5,145.37,50.88307155]
[1750862073058,7.22767477,145.47,145.43,6.8723]
[1750862073253,6.8714,145.45,145.38,6.40307155]
[1750862073557,7.22767477,145.47,145.42,6.8726]
[1750862073750,6.8711,145.46,145.38,68.40307155]
[1750862074056,7.22767477,145.47,145.38,68.40307155]
[1750862074452,6.8711,145.46,145.38,68.40307155]
[1750862074653,6.8711,145.46,145.43,6.8721]
[1750862074844,7.22767477,145.47,145.43,6.8721]
[1750862075048,7.22767477,145.47,145.39,13.63074632]
[1750862075351,7.22767477,145.47,145.43,6.8721]
[1750862075655,7.22767477,145.47,145.43,6.872]
[1750862076056,6.8712,145.46,145.43,6.872]
[1750862077753,44.46,145.49,145.41,44.46]
[1750862077958,7.22767477,145.5,145.42,14.18427477]
[1750862078659,7.22767477,145.5,145.42,6.9566]
[1750862078863,6.8703,145.48,145.44,6.8717]
[1750862079053,7.22767477,145.48,145.44,6.8717]
[1750862079552,6.8707,145.47,145.44,6.8717]
[1750862079754,6.8707,145.47,145.45,6.8713]
[1750862079961,6.8707,145.47,145.42,6.9566]
[1750862080350,6.8707,145.47,145.44,6.8714]
[1750862080862,6.8707,145.47,145.45,6.8713]
[1750862081261,14.09787477,145.48,145.42,6.9566]
[1750862081459,7.22767477,145.5,145.42,14.18427477]
[1750862081857,6.8698,145.49,145.46,6.8707]
[1750862082061,7.22767477,145.5,145.42,14.18427477]
[1750862082263,7.22767477,145.5,145.42,6.9566]
[1750862082566,7.22767477,145.49,145.42,6.9566]
[1750862083160,14.09757477,145.49,145.46,6.8707]
[1750862083365,6.8699,145.49,145.46,6.8707]
[1750862083558,7.22767477,145.51,145.42,6.9566]
[1750862083860,7.22767477,145.43,145.35,694.44224171]
[1750862084065,14.10127477,145.41,145.35,49.0235]
[1750862084366,7.22767477,145.41,145.35,49.0235]
[1750862085357,7.22767477,145.43,145.35,56.25117477]
[1750862085663,44.46,145.44,145.35,56.25117477]
[1750862085864,51.3322,145.44,145.41,6.8731]
[1750862087966,44.46,145.44,145.4,6.8736]
[1750862088170,7.22767477,145.43,145.4,6.8736]
[1750862088868,14.10027477,145.43,145.4,6.8736]
[1750862089866,6.873,145.42,145.39,6.874]
[1750862090064,7.22767477,145.41,145.35,49.0235]
[1750862090262,7.22767477,145.41,145.35,4.5635]
[1750862090460,14.10117477,145.41,145.38,6.8743]
[1750862090668,7.22767477,145.41,145.35,4.5635]
[1750862091167,7.22767477,145.43,145.35,4.5635]
[1750862091559,51.68767477,145.44,145.41,6.873]
[1750862091765,51.68767477,145.44,145.36,50.44224171]
[1750862091966,51.68767477,145.44,145.37,6.34224171]
[1750862091967,7.22767477,145.44,145.37,6.34224171]
[1750862092362,7.22767477,145.44,145.42,6.8725]
[1750862093470,14.09887477,145.46,145.43,6.8723]
[1750862094068,14.09887477,145.46,145.38,6.34224171]
[1750862094266,44.1,145.47,145.39,13.56991648]
[1750862094465,44.1,145.47,145.4,52.75714171]
[1750862094865,6.8711,145.46,145.4,52.75714171]
[1750862095375,6.8711,145.46,145.43,6.8719]
[1750862096775,50.9706,145.47,145.44,6.8718]
[1750862096979,44.1,145.5,145.43,6.34224171]
[1750862097175,6.8693,145.5,145.47,6.8703]
[1750862097485,51.32767477,145.51,145.44,6.34224171]
[1750862097672,51.32767477,145.51,145.47,6.8702]
[1750862097976,51.32767477,145.51,145.45,6.34224171]
[1750862098676,7.22767477,145.49,145.44,6.34224171]
[1750862098879,5.00252427,145.48,145.44,6.34224171]
[1750862099173,7.22767477,145.47,145.43,6.34224171]
[1750862099376,5.00144982,145.46,145.42,6.34224171]
[1750862099564,6.8712,145.46,145.42,6.34224171]
[1750862099962,6.8712,145.46,145.43,6.8721]
[1750862100167,6.8712,145.46,145.42,6.34224171]
[1750862100168,7.22767477,145.47,145.42,6.34224171]
[1750862100368,5.00038905,145.46,145.42,6.34224171]
[1750862100565,14.09727477,145.49,145.43,6.34224171]
[1750862100778,14.09727477,145.49,145.45,6.34224171]
[1750862100779,6.8696,145.49,145.45,6.34224171]
[1750862101074,44.08,145.5,145.45,6.34224171]
[1750862101276,5.02365423,145.49,145.45,6.34224171]
[1750862101478,44.08,145.5,145.47,6.8702]
[1750862101778,44.08,145.5,145.45,6.34224171]
[1750862102078,5.02346094,145.49,145.47,6.8702]
[1750862102275,50.9493,145.5,145.47,6.8702]
[1750862102474,5.02355682,145.49,145.46,6.34224171]
[1750862102674,44.08,145.5,145.46,6.34224171]
[1750862103182,44.08,145.53,145.5,6.869]
[1750862103371,5.02487601,145.52,145.48,6.34224171]
[1750862103568,5.02487601,145.51,145.49,6.8695]
[1750862103776,44.08,145.53,145.48,6.34224171]
[1750862103982,5.0261202,145.52,145.48,6.34224171]
[1750862104179,6.8683,145.52,145.49,6.8691]
[1750862104382,650.58767477,145.55,145.48,6.34224171]
[1750862104572,5.02255973,145.54,145.49,8.66134171]
[1750862104881,5.02255973,145.53,145.49,8.66134171]
[1750862105085,50.9466,145.56,145.5,6.34224171]
[1750862105382,5.02386844,145.55,145.51,6.34224171]
[1750862105679,6.8665,145.56,145.52,6.8679]
[1750862105876,14.01358785,145.58,145.52,6.8679]
[1750862105877,2.51929369,145.58,145.53,51.30767477]
[1750862106072,6.8651,145.59,145.54,6.34224171]
[1750862106477,6.8651,145.59,145.53,54.89393127]
[1750862106478,2.52139506,145.61,145.55,6.34224171]
[1750862106674,5.02573946,145.61,145.56,6.34224171]
[1750862106875,5.02573946,145.62,145.57,6.34224171]
[1750862107077,6.8621,145.65,145.58,6.34224171]
[1750862107270,5.02776755,145.64,145.58,6.865]
[1750862107478,7.22767477,145.64,145.57,55.17934171]
[1750862107677,7.22767477,145.62,145.55,6.34224171]
[1750862107980,5.02776755,145.62,145.55,6.34224171]
[1750862108173,11.89156755,145.62,145.56,6.34224171]
[1750862108373,5.02776755,145.62,145.57,6.8657]
[1750862108571,5.02776755,145.62,145.55,6.34224171]
[1750862108881,44.08,145.63,145.56,6.34224171]
[1750862109177,643.22,145.69,145.57,57.64991648]
[1750862109178,44.08,145.67,145.57,57.64991648]
[1750862109383,49.09931013,145.67,145.57,57.64991648]
[1750862109679,5.01931013,145.67,145.58,6.34224171]
[1750862109880,51.28767477,145.71,145.62,7.22767477]
[1750862110081,5.01939541,145.7,145.64,7.22767477]
[1750862110276,14.391404,145.72,145.64,7.22767477]
[1750862110476,7.22767477,145.74,145.64,7.22767477]
[1750862110678,5.01939541,145.73,145.63,117.29014171]
[1750862110876,5.01939541,145.73,145.68,6.8603]
[1750862111276,5.01939541,145.74,145.68,6.8603]
[1750862111476,5.01939541,145.74,145.68,6.8601]
[1750862111785,7.22767477,145.73,145.64,7.22767477]
[1750862111982,5.01939541,145.74,145.68,6.8605]
[1750862112285,44.06,145.75,145.63,117.29014171]
[1750862112286,44.06,145.75,145.67,44.06]
[1750862112675,7.22767477,145.69,145.61,2.2822]
[1750862112981,7.22767477,145.63,145.57,6.8654]
[1750862113177,7.22767477,145.61,145.56,7.2302]
[1750862113381,7.22767477,145.61,145.56,4.771]
[1750862113777,44.04,145.64,145.56,4.771]
[1750862113982,642.68,145.68,145.57,51.26767477]
[1750862114183,7.22767477,145.66,145.57,51.26767477]
[1750862114477,686.72,145.68,145.57,44.04]
[1750862114682,697.74798886,145.68,145.57,44.04]
[1750862115077,6.8623,145.65,145.61,6.8634]
[1750862115383,686.72,145.68,145.57,44.04]
[1750862115583,6.8617,145.66,145.61,6.8634]
[1750862115980,44.04,145.68,145.58,11.02798886]
[1750862116274,44.04,145.68,145.57,44.04]
[1750862116275,44.04,145.68,145.6,11.02798886]
[1750862116479,44.04,145.68,145.61,2.2193]
[1750862116788,6.8617,145.66,145.61,2.2193]
[1750862117288,11.02798886,145.67,145.61,2.2193]
[1750862118087,44.04,145.68,145.61,2.2193]
[1750862118279,6.8615,145.66,145.62,6.863]
[1750862118480,44.04,145.68,145.61,2.2193]
[1750862118877,43.7,145.71,145.61,45.9193]
[1750862119077,43.7,145.72,145.64,11.02798886]
[1750862119284,43.7,145.72,145.65,2.2897]
[1750862119480,6.8594,145.71,145.65,2.2897]
[1750862119985,6.8594,145.71,145.67,6.8607]
[1750862120390,6.8596,145.7,145.67,6.8607]
[1750862120692,6.8596,145.7,145.66,6.8614]
[1750862120894,6.8592,145.71,145.65,2.2897]
[1750862121285,6.8592,145.71,145.67,6.8606]
[1750862121583,6.859,145.72,145.65,2.2897]
[1750862121793,43.68,145.75,145.7,6.8592]
[1750862121994,6.8573,145.75,145.65,56.99768886]
[1750862122190,5.04254008,145.77,145.68,11.02798886]
[1750862122489,43.68,145.78,145.69,48.2704]
[1750862122789,43.68,145.78,145.72,6.8584]
[1750862122993,43.68,145.78,145.69,48.2704]
[1750862123192,6.8571,145.76,145.69,48.2704]
[1750862123491,6.8571,145.76,145.72,6.8583]
[1750862123995,43.68,145.78,145.69,48.2704]
[1750862124185,11.02798886,145.77,145.69,48.2704]
[1750862124391,11.02798886,145.77,145.72,6.8583]
[1750862124897,43.68,145.78,145.73,6.8579]
[1750862125088,43.68,145.78,145.69,59.29838886]
[1750862125394,6.8573,145.75,145.72,6.8584]
[1750862125596,43.68,145.78,145.72,6.8584]
[1750862125793,43.68,145.78,145.69,59.29838886]
[1750862125997,6.8571,145.76,145.73,6.8581]
[1750862126202,43.68,145.78,145.69,59.29838886]
[1750862126499,6.857,145.76,145.73,6.8582]
[1750862126885,642.26,145.93,145.74,11.02798886]
[1750862127091,11.02798886,145.87,145.74,57.03348886]
[1750862127291,43.68,145.87,145.75,2.2553]
[1750862127506,43.68,145.87,145.84,6.8527]
[1750862127894,43.68,145.87,145.79,43.68]
[1750862128199,43.68,145.87,145.83,6.8533]
[1750862128392,43.68,145.87,145.79,43.68]
[1750862128590,5.00170339,145.9,145.79,54.70798886]
[1750862128797,54.68798886,145.91,145.79,54.70798886]
[1750862128995,6.8507,145.89,145.79,54.70798886]
[1750862129296,2853.7,146.12,145.79,43.68]
[1750862129499,6.8487,145.94,145.89,6.8502]
[1750862129697,6.8487,145.94,145.85,50.6271]
[1750862129901,43.66,145.95,145.85,50.6271]
[1750862130104,48.66771593,145.95,145.85,50.6271]
[1750862130396,43.66,145.95,145.85,50.6271]
[1750862130899,43.66,145.95,145.76,13.7133]
[1750862130900,11.02798886,145.91,145.78,43.64]
[1750862131098,11.02798886,145.89,145.78,43.64]
[1750862131293,11.02798886,145.89,145.78,54.66798886]
[1750862131600,6.8519,145.87,145.78,54.66798886]
[1750862131794,6.8519,145.87,145.78,43.64]
[1750862131795,11.02798886,145.87,145.78,43.64]
[1750862132101,6.8547,145.81,145.77,9.1284]
[1750862132295,54.66798886,145.83,145.72,48.1681]
[1750862132597,11.02798886,145.8,145.72,48.1681]
[1750862133202,6.8566,145.77,145.73,6.8579]
[1750862133404,11.02798886,145.79,145.72,48.1681]
[1750862133790,11.02798886,145.79,145.74,6.8574]
[1750862134303,11.02798886,145.79,145.72,45.9125]
[1750862134601,6.8566,145.77,145.72,45.9125]
[1750862134804,56.50798886,145.79,145.72,43.64]
[1750862135003,11.02798886,145.77,145.72,50.4983]
[1750862135198,11.02798886,145.77,145.69,2.3887]
[1750862135399,11.02798886,145.77,145.68,47.9021]
[1750862135590,6.8571,145.76,145.72,6.8582]
[1750862135793,6.8571,145.76,145.69,2.3887]
[1750862135993,6.8571,145.76,145.72,6.8583]
[1750862136196,56.50798886,145.79,145.69,2.3887]
[1750862136402,11.02798886,145.77,145.69,2.3887]
[1750862136605,45.48,145.79,145.69,13.41668886]
[1750862136908,45.48,145.79,145.7,2.2427]
[1750862137095,45.48,145.79,145.71,11.02798886]
[1750862137296,45.48,145.79,145.72,45.48]
[1750862137496,45.48,145.83,145.72,45.48]
[1750862137697,50.54227056,145.83,145.72,45.48]
[1750862137898,6.8547,145.81,145.72,45.48]
[1750862138404,11.91627056,145.82,145.72,45.48]
[1750862138607,5.06227056,145.82,145.72,45.48]
[1750862138906,6.855,145.8,145.72,45.48]
[1750862139212,5.06227056,145.82,145.72,45.48]
[1750862139406,6.855,145.8,145.76,6.8565]
[1750862139608,5.06227056,145.82,145.76,6.8565]
[1750862139804,5.06640549,145.81,145.77,6.8563]
[1750862140004,5.06809777,145.82,145.76,11.02798886]
[1750862140193,5.06809777,145.82,145.69,64.3887]
[1750862140194,45.48,145.89,145.79,11.02798886]
[1750862140394,45.48,145.89,145.77,52.6852]
[1750862140395,5.06896559,145.88,145.8,6.8546]
[1750862140600,5.06896559,145.87,145.78,45.48]
[1750862140810,5.06896559,145.86,145.78,45.48]
[1750862141009,5.06896559,145.85,145.78,45.48]
[1750862141203,5.06896559,145.84,145.78,45.48]
[1750862141405,5.06896559,145.83,145.78,6.8556]
[1750862141607,11.92326559,145.82,145.77,4.8484]
[1750862141806,11.02798886,145.84,145.77,4.8484]
[1750862142010,5.07497058,145.83,145.78,6.8555]
[1750862142209,11.92917058,145.82,145.78,6.8555]
[1750862142408,11.92917058,145.82,145.77,4.8484]
[1750862142409,6.8542,145.82,145.77,4.8484]
[1750862142606,5.07418801,145.83,145.77,4.8484]
[1750862142908,641.78,145.93,145.78,45.48]
[1750862143108,6.8523,145.86,145.82,6.8538]
[1750862143307,11.02798886,145.9,145.79,11.02798886]
[1750862143509,5.07155942,145.89,145.81,6.8541]
[1750862143809,11.02798886,145.87,145.78,45.48]
[1750862144003,5.07155942,145.86,145.78,45.48]
[1750862144205,5.07155942,145.85,145.81,6.8542]
[1750862144402,5.07155942,145.84,145.78,45.48]
[1750862144607,56.50798886,145.87,145.78,45.48]
[1750862144915,6.8531,145.84,145.78,45.48]
[1750862145114,56.50798886,145.87,145.78,45.48]
[1750862145306,52.3321,145.87,145.78,45.48]
[1750862145509,5.07472703,145.86,145.78,45.48]
[1750862145808,5.07472703,145.85,145.83,6.8532]
[1750862146004,5.07472703,145.84,145.83,6.8532]
[1750862146409,5.07472703,145.84,145.82,6.8538]
[1750862146610,5.08500129,145.83,145.82,6.8538]
[1750862146820,5.08435201,145.83,145.78,45.48]
[1750862147007,6.8533,145.84,145.78,45.48]
[1750862147314,5.08412146,145.83,145.77,4.8484]
[1750862147519,5.08412146,145.82,145.77,4.8484]
[1750862147812,6.8538,145.83,145.79,6.855]
[1750862148018,5.0845719,145.82,145.77,4.8484]
[1750862148209,11.02798886,145.84,145.79,6.855]
[1750862148405,5.08687688,145.83,145.77,4.8484]
[1750862148611,5.08687688,145.82,145.77,4.8484]
[1750862148915,6.8536,145.83,145.79,6.8553]
[1750862149119,5.08673721,145.82,145.77,4.8484]
[1750862149307,5.08673721,145.81,145.77,4.8484]
[1750862149617,6.8537,145.83,145.77,4.8484]
[1750862149916,11.95180792,145.82,145.79,6.855]
[1750862150118,5.09770792,145.81,145.77,4.8484]
[1750862150409,11.02798886,145.84,145.77,4.8484]
[1750862150613,11.95927814,145.83,145.79,6.8549]
[1750862150810,5.10537814,145.82,145.79,6.8549]
[1750862151009,11.02798886,145.84,145.79,6.8549]
[1750862151213,45.48,145.87,145.77,4.8484]
[1750862151214,5.10308366,145.83,145.77,4.8484]
[1750862151413,45.48,145.87,145.78,45.48]
[1750862151618,11.95632316,145.86,145.83,6.8533]
[1750862151813,5.10402316,145.85,145.78,56.50798886]
[1750862152112,5.10402316,145.84,145.83,6.8535]
[1750862152312,56.50798886,145.91,145.81,11.02798886]
[1750862152718,6.8519,145.87,145.83,6.8531]
[1750862153116,11.02798886,145.88,145.78,45.48]
[1750862153521,45.48,145.87,145.78,45.48]
[1750862153715,45.48,145.87,145.79,6.8552]
[1750862153914,45.48,145.87,145.78,45.48]
[1750862154917,6.8528,145.85,145.78,45.48]
[1750862155114,45.48,145.87,145.78,45.48]
[1750862155415,6.8529,145.85,145.78,45.48]
[1750862156115,45.48,145.87,145.78,45.48]
[1750862156311,11.02798886,145.85,145.77,4.8484]
[1750862156615,6.854,145.82,145.79,6.8551]
[1750862156815,11.02798886,145.85,145.77,4.8484]
[1750862157115,6.8537,145.83,145.8,6.8548]
[1750862158320,11.02798886,145.86,145.77,4.8484]
[1750862158810,11.02798886,145.86,145.81,6.8542]
[1750862159011,11.02798886,145.86,145.77,4.8484]
[1750862159622,6.8537,145.83,145.81,6.8542]
[1750862159832,6.8537,145.83,145.77,4.8484]
[1750862160121,11.02798886,145.86,145.77,4.8484]